[Event "VII Open Internacional Quart de Poblet"]
[Site "Quart de Poblet, Spain"]
[Date "2019.08.10"]
[Round "8.2"]
[White "Davtyan, David Arm"]
[Black "Nieves Cabanes, Jose Manuel"]
[Result "1-0"]
[TimeControl "90m +30s por jugada"]
[BlackFideId "22245715"]
[WhiteElo "2249"]
[BlackElo "2311"]

1. c4 {[%clk 01:30:39]} e6 {[%clk 01:29:30]} {[%emt 00:01:30]} 2. Nf3 {[%clk
01:30:50]} {[%emt 00:00:18]} d5 {[%clk 01:29:35]} {[%emt 00:00:25]} 3. d4
{[%clk 01:31:15]} {[%emt 00:00:08]} a6 {[%clk 01:29:46]} {[%emt 00:00:18]} 4.
cxd5 {[%clk 01:31:17]} {[%emt 00:00:29]} exd5 {[%clk 01:30:11]} {[%emt
00:00:07]} 5. Nc3 {[%clk 01:31:45]} {[%emt 00:00:04]} c6 {[%clk 01:30:20]}
{[%emt 00:00:15]} 6. Qc2 {[%clk 01:28:57]} {[%emt 00:03:17]} Bd6 {[%clk
01:25:00]} {[%emt 00:05:50]} 7. Bg5 {[%clk 01:26:44]} {[%emt 00:02:42]} Ne7
{[%clk 01:25:01]} {[%emt 00:00:29]} 8. e3 {[%clk 01:26:12]} {[%emt 00:01:04]}
f6 {[%clk 01:22:39]} {[%emt 00:02:53]} 9. Bh4 {[%clk 01:25:49]} {[%emt
00:01:10]} Bf5 {[%clk 01:22:42]} {[%emt 00:00:07]} 10. Bd3 {[%clk 01:25:45]}
{[%emt 00:00:37]} Bxd3 {[%clk 01:18:54]} {[%emt 00:04:17]} 11. Qxd3 {[%clk
01:26:05]} {[%emt 00:00:24]} Nd7 {[%clk 01:19:05]} {[%emt 00:00:04]} 12. Bg3
{[%clk 01:21:32]} {[%emt 00:05:09]} Nb6 {[%clk 01:18:59]} {[%emt 00:00:40]} 13.
O-O {[%clk 01:18:22]} {[%emt 00:03:36]} O-O {[%clk 01:18:54]} {[%emt 00:00:28]}
14. Rfe1 {[%clk 01:17:01]} {[%emt 00:01:52]} Kh8 {[%clk 01:12:01]} {[%emt
00:07:26]} 15. e4 {[%clk 01:07:25]} {[%emt 00:10:02]} Bb4 {[%clk 01:02:13]}
{[%emt 00:10:21]} 16. e5 {[%clk 00:57:56]} {[%emt 00:10:05]} Ng6 {[%clk
01:00:34]} {[%emt 00:02:07]} 17. Nh4 {[%clk 00:50:10]} {[%emt 00:08:07]} Nxh4
{[%clk 00:52:49]} {[%emt 00:08:15]} 18. Bxh4 {[%clk 00:50:39]} {[%emt
00:00:12]} g5 {[%clk 00:53:10]} {[%emt 00:00:03]} 19. Bg3 {[%clk 00:50:57]}
{[%emt 00:00:08]} f5 {[%clk 00:53:24]} {[%emt 00:00:19]} 20. f4 {[%clk
00:50:22]} {[%emt 00:01:01]} g4 {[%clk 00:52:44]} {[%emt 00:01:10]} 21. h3
{[%clk 00:42:09]} {[%emt 00:08:49]} gxh3 {[%clk 00:50:24]} {[%emt 00:02:44]} 22.
gxh3 {[%clk 00:42:14]} {[%emt 00:00:23]} Qe8 {[%clk 00:42:40]} {[%emt
00:08:16]} 23. Bh4 {[%clk 00:36:40]} {[%emt 00:06:07]} Nd7 {[%clk 00:42:05]}
{[%emt 00:01:09]} 24. Qf3 {[%clk 00:31:15]} {[%emt 00:05:48]} Qe6 {[%clk
00:37:25]} {[%emt 00:05:11]} 25. Kh2 {[%clk 00:27:24]} {[%emt 00:04:24]} Rg8
{[%clk 00:36:48]} {[%emt 00:01:10]} 26. Rg1 {[%emt 00:04:17]} Bxc3 {[%clk
00:35:34]} {[%emt 00:00:30]} 27. bxc3 {[%clk 00:24:29]} {[%emt 00:00:46]} Rg6
{[%emt 00:04:47]} 28. Rxg6 {[%clk 00:21:16]} {[%emt 00:01:25]} hxg6 {[%clk
00:33:45]} {[%emt 00:00:21]} 29. Rg1 {[%emt 00:01:09]} Kg7 {[%emt 00:02:54]} 30.
Qh5 {[%clk 00:13:24]} {[%emt 00:04:33]} Qf7 31. Qd1 {[%emt 00:05:40]} Re8
{[%clk 00:27:27]} {[%emt 00:03:23]} 32. Bg5 {[%clk 00:12:18]} {[%emt 00:01:05]}
Qf8 {[%clk 00:26:06]} {[%emt 00:01:51]} 33. Qe1 {[%clk 00:10:15]} {[%emt
00:08:23]} Kf7 {[%clk 00:17:37]} 34. Qh4 {[%clk 00:10:15]} Qh8 35. Qf2 Re6
{[%clk 00:19:34]} 36. Qb2 {[%clk 00:10:15]} b6 {[%clk 00:19:34]} 37. Qb3 {[%clk
00:10:15]} Qh5 {[%clk 00:19:34]} 38. Rg2 {[%clk 00:10:15]} Qf3 {[%clk
00:19:34]} 39. Qa4 {[%clk 00:10:15]} Qd3 {[%clk 00:19:34]} 40. h4 {[%clk
00:10:15]} a5 {[%clk 00:19:34]} 41. Qb3 {[%clk 00:10:15]} b5 {[%clk 00:19:34]}
42. Qa3 {[%clk 00:10:15]} a4 {[%clk 00:19:34]} 43. Qb4 {[%clk 00:10:15]} Nf8
{[%clk 00:19:34]} 44. Qa5 {[%clk 00:10:15]} Qf3 {[%clk 00:19:34]} 45. Qc7+
{[%clk 00:10:15]} Ke8 {[%clk 00:19:34]} 46. Qd8+ {[%clk 00:10:15]} Kf7 {[%clk
00:19:34]} 47. Bh6 {[%clk 00:10:15]} Nh7 {[%clk 00:19:34]} 48. Qd7+ {[%clk
00:10:15]} Re7 {[%clk 00:19:34]} 49. e6+ {[%clk 00:10:15]} Kf6 {[%clk
00:19:34]} 50. Bg5+ {[%clk 00:10:15]} Nxg5 {[%clk 00:19:34]} 51. fxg5+ {[%clk
00:10:15]} Kg7 {[%clk 00:19:34]} 52. Qxe7+ {[%clk 00:10:15]} Kg8 {[%clk
00:19:34]} 53. Qf7+ {[%clk 00:10:15]} Kh8 {[%clk 00:19:34]} 54. Qf8+ {[%clk
00:10:15]} Kh7 {[%clk 00:19:34]} 55. Qh6+ {[%clk 00:10:15]} Kg8 {[%clk
00:19:34]} 56. Qxg6+ {[%clk 00:10:15]} Kh8 {[%clk 00:19:34]} 57. Qf6+ {[%clk
00:10:15]} Kg8 {[%clk 00:19:34]} 58. Qf7+ {[%clk 00:10:15]} 1-0

[Event "VII Open Internacional Quart de Poblet"]
[Site "Quart de Poblet, Spain"]
[Date "2019.08.10"]
[Round "8.3"]
[White "Nieves Cabanes, Javier"]
[Black "Sanchez Saez, Francisco"]
[Result "1-0"]
[TimeControl "90m +30s por jugada"]
[WhiteFideId "22245707"]
[BlackFideId "2231743"]
[WhiteElo "2211"]
[BlackElo "2359"]

1. Nf3 {[%clk 01:30:57]} {[%emt 00:00:23]} g6 {[%clk 01:24:44]} {[%emt
00:05:58]} 2. g3 {[%clk 01:31:05]} {[%emt 00:00:22]} Bg7 {[%clk 01:25:06]}
{[%emt 00:00:13]} 3. Bg2 {[%clk 01:31:10]} {[%emt 00:00:20]} d6 {[%clk
01:25:00]} {[%emt 00:00:37]} 4. d4 {[%clk 01:31:20]} {[%emt 00:00:28]} Nf6
{[%clk 01:25:20]} {[%emt 00:00:42]} 5. b3 {[%clk 01:31:09]} {[%emt 00:00:07]}
O-O {[%clk 01:25:12]} {[%emt 00:00:30]} 6. Bb2 {[%clk 01:31:30]} {[%emt
00:00:33]} e5 {[%clk 01:24:35]} {[%emt 00:00:44]} 7. dxe5 {[%emt 00:01:28]} Ng4
{[%clk 01:24:41]} 8. Nc3 {[%clk 01:31:39]} {[%emt 00:00:04]} Nxe5 {[%clk
01:24:30]} {[%emt 00:00:43]} 9. Nxe5 {[%clk 01:31:41]} {[%emt 00:00:08]} Bxe5
{[%clk 01:24:26]} {[%emt 00:00:36]} 10. Qd2 {[%clk 01:31:25]} {[%emt 00:00:44]}
Nc6 {[%clk 01:23:36]} {[%emt 00:01:30]} 11. O-O-O {[%clk 01:29:48]} {[%emt
00:01:56]} a5 {[%clk 01:16:11]} {[%emt 00:08:06]} 12. h4 {[%clk 01:26:13]}
{[%emt 00:04:03]} h5 {[%clk 01:15:18]} {[%emt 00:01:15]} 13. Kb1 {[%clk
01:17:44]} {[%emt 00:09:11]} Bg7 {[%clk 01:07:26]} {[%emt 00:08:11]} 14. f3
{[%clk 01:14:51]} {[%emt 00:03:23]} Ne5 {[%clk 01:00:56]} {[%emt 00:06:59]} 15.
g4 {[%clk 01:11:16]} {[%emt 00:04:05]} a4 {[%clk 01:00:10]} {[%emt 00:01:17]}
16. gxh5 {[%clk 01:09:16]} {[%emt 00:03:03]} axb3 {[%clk 00:56:53]} {[%emt
00:03:16]} 17. axb3 {[%clk 01:07:18]} {[%emt 00:02:24]} gxh5 {[%clk 00:53:21]}
{[%emt 00:04:01]} 18. Bh3 {[%clk 01:05:22]} {[%emt 00:02:27]} Ng6 {[%clk
00:45:52]} {[%emt 00:08:02]} 19. Rdg1 {[%clk 00:57:47]} {[%emt 00:08:06]} Bxh3
{[%clk 00:30:25]} {[%emt 00:16:30]} 20. Rxh3 {[%clk 00:57:08]} {[%emt
00:00:31]} Re8 {[%clk 00:30:16]} {[%emt 00:00:40]} 21. f4 {[%clk 00:51:53]}
{[%emt 00:05:52]} Qf6 {[%clk 00:25:29]} {[%emt 00:05:12]} 22. Rhg3 {[%clk
00:46:46]} {[%emt 00:05:35]} Kf8 {[%clk 00:08:11]} {[%emt 00:17:51]} 23. Na4
{[%clk 00:42:17]} {[%emt 00:04:58]} Qe6 {[%clk 00:08:01]} {[%emt 00:00:38]} 24.
Bxg7+ {[%clk 00:42:04]} {[%emt 00:00:41]} Kxg7 {[%clk 00:08:26]} {[%emt
00:00:14]} 25. Rg5 {[%clk 00:41:44]} {[%emt 00:00:42]} b5 {[%clk 00:05:47]}
{[%emt 00:03:10]} 26. Qc3+ {[%clk 00:32:22]} {[%emt 00:10:12]} Kf8 {[%clk
00:03:33]} {[%emt 00:02:23]} 27. f5 {[%clk 00:32:41]} {[%emt 00:00:13]} Qe3
{[%clk 00:03:02]} {[%emt 00:00:59]} 28. Rxg6 {[%clk 00:32:04]} {[%emt
00:01:13]} Qxc3 {[%clk 00:02:07]} {[%emt 00:01:19]} 29. Rg8+ {[%clk 00:32:17]}
{[%emt 00:00:18]} Ke7 {[%clk 00:02:34]} {[%emt 00:00:15]} 30. Rxe8+ {[%clk
00:32:31]} {[%emt 00:00:09]} Rxe8 {[%clk 00:02:59]} {[%emt 00:00:04]} 31. Nxc3
{[%clk 00:32:51]} {[%emt 00:00:31]} Kf6 {[%clk 00:03:24]} {[%emt 00:00:08]} 32.
e4 {[%clk 00:32:14]} {[%emt 00:00:57]} c6 {[%clk 00:03:41]} {[%emt 00:00:03]}
33. b4 {[%clk 00:31:19]} {[%emt 00:01:42]} Ke5 {[%clk 00:03:52]} {[%emt
00:00:06]} 34. Kb2 {[%clk 00:30:59]} {[%emt 00:00:37]} Kd4 {[%clk 00:02:59]}
{[%emt 00:01:50]} 35. Kb3 {[%clk 00:30:55]} {[%emt 00:00:10]} Rb8 {[%clk
00:02:31]} {[%emt 00:00:56]} 36. Rg5 {[%clk 00:27:13]} {[%emt 00:04:16]} Rh8
{[%clk 00:02:55]} {[%emt 00:00:11]} 37. Rg7 {[%clk 00:26:54]} {[%emt 00:00:40]}
Rf8 {[%clk 00:03:19]} {[%emt 00:00:08]} 38. Rh7 {[%clk 00:24:12]} {[%emt
00:03:10]} Rg8 {[%clk 00:03:43]} {[%emt 00:00:28]} 39. Kb2 {[%clk 00:24:08]}
{[%emt 00:00:12]} Kc4 {[%clk 00:03:41]} {[%emt 00:00:32]} 40. Rxf7 {[%clk
00:23:57]} {[%emt 00:00:40]} Kxb4 {[%clk 00:04:05]} {[%emt 00:00:09]} 41. Rc7
{[%clk 00:23:43]} {[%emt 00:00:43]} c5 {[%clk 00:03:31]} {[%emt 00:01:05]} 42.
f6 {[%clk 00:23:08]} {[%emt 00:01:02]} Kc4 {[%clk 00:03:50]} {[%emt 00:00:37]}
43. f7 {[%clk 00:23:15]} {[%emt 00:00:03]} Rf8 {[%clk 00:04:15]} {[%emt
00:00:04]} 44. Re7 {[%clk 00:23:30]} {[%emt 00:00:11]} b4 {[%clk 00:03:58]}
{[%emt 00:00:50]} 45. Nd5 {[%clk 00:23:41]} {[%emt 00:00:16]} b3 {[%clk
00:02:51]} {[%emt 00:01:37]} 46. cxb3+ {[%clk 00:23:42]} {[%emt 00:00:44]} Kd3
{[%clk 00:03:03]} {[%emt 00:00:05]} 47. Nf4+ {[%clk 00:24:05]} {[%emt
00:00:08]} Kd2 {[%clk 00:02:21]} {[%emt 00:01:12]} 48. Ng6 {[%clk 00:24:21]}
{[%emt 00:00:28]} c4 {[%clk 00:02:47]} 49. Nxf8 {[%clk 00:24:10]} {[%emt
00:00:46]} c3+ {[%clk 00:03:11]} 50. Ka2 {[%clk 00:24:33]} {[%emt 00:00:19]} d5
{[%clk 00:03:30]} 51. exd5 {[%clk 00:24:10]} {[%emt 00:00:44]} c2 {[%clk
00:03:54]} {[%emt 00:00:03]} 52. Rc7 {[%clk 00:24:32]} {[%emt 00:00:09]} c1=N+
{[%clk 00:01:23]} {[%emt 00:03:04]} 53. Rxc1 {[%clk 00:24:54]} {[%emt
00:00:05]} 1-0

[Event "VII Open Internacional Quart de Poblet"]
[Site "Quart de Poblet, Spain"]
[Date "2019.08.10"]
[Round "8.4"]
[White "Castella Garcia, Fausto"]
[Black "Galvan, Jesus"]
[Result "1-0"]
[TimeControl "90m +30s por jugada"]
[WhiteFideId "3501922"]
[BlackFideId "3800458"]
[WhiteElo "2315"]
[BlackElo "2220"]

1. e4 {[%clk 01:26:41]} d6 {[%clk 01:30:42]} {[%emt 00:00:43]} 2. d4 {[%clk
01:26:51]} {[%emt 00:00:04]} Nf6 {[%clk 01:31:05]} 3. Nc3 {[%clk 01:27:15]}
{[%emt 00:00:03]} e5 {[%clk 01:31:25]} {[%emt 00:00:10]} 4. Nf3 {[%clk
01:27:32]} {[%emt 00:00:06]} Nbd7 {[%clk 01:31:42]} {[%emt 00:00:13]} 5. g4
{[%clk 01:27:23]} {[%emt 00:00:36]} g6 {[%clk 01:20:01]} {[%emt 00:12:13]} 6.
g5 {[%clk 01:27:04]} {[%emt 00:00:50]} Nh5 {[%clk 01:20:29]} 7. Bh3 {[%clk
01:25:53]} {[%emt 00:01:39]} Bg7 {[%clk 01:20:26]} {[%emt 00:00:34]} 8. Bg4
{[%clk 01:22:06]} {[%emt 00:04:16]} Nf8 {[%clk 01:16:06]} {[%emt 00:04:50]} 9.
Bxh5 {[%clk 01:13:21]} {[%emt 00:09:14]} gxh5 {[%clk 01:15:58]} {[%emt
00:00:38]} 10. dxe5 {[%clk 01:13:41]} {[%emt 00:00:10]} dxe5 {[%clk 01:15:17]}
{[%emt 00:01:23]} 11. Qxd8+ {[%clk 01:13:58]} {[%emt 00:00:07]} Kxd8 {[%clk
01:15:44]} 12. Be3 {[%clk 01:14:13]} {[%emt 00:00:16]} Ng6 {[%clk 00:55:35]}
{[%emt 00:20:35]} 13. O-O-O+ {[%clk 01:02:36]} {[%emt 00:12:07]} Bd7 {[%clk
00:55:56]} {[%emt 00:00:18]} 14. Nd2 {[%clk 01:01:04]} {[%emt 00:02:14]} Kc8
{[%clk 00:53:29]} {[%emt 00:02:40]} 15. f3 {[%clk 00:54:44]} {[%emt 00:06:56]}
h4 {[%clk 00:48:25]} {[%emt 00:05:26]} 16. Nc4 {[%clk 00:51:27]} {[%emt
00:03:45]} Be6 {[%clk 00:46:26]} {[%emt 00:02:29]} 17. Nd5 {[%clk 00:37:10]}
{[%emt 00:14:47]} b6 {[%clk 00:46:28]} {[%emt 00:00:29]} 18. Rd3 {[%clk
00:32:37]} {[%emt 00:05:02]} c6 {[%clk 00:31:59]} {[%emt 00:15:09]} 19. Nd6+
{[%clk 00:29:01]} {[%emt 00:04:10]} Kb8 {[%clk 00:28:05]} {[%emt 00:04:18]} 20.
Nb4 {[%clk 00:18:12]} {[%emt 00:11:11]} a5 {[%clk 00:28:13]} {[%emt 00:00:22]}
21. Nxc6+ {[%clk 00:18:29]} {[%emt 00:00:16]} Kc7 {[%clk 00:28:41]} {[%emt
00:00:04]} 22. Nf5 {[%clk 00:17:25]} {[%emt 00:01:34]} Kxc6 {[%clk 00:07:03]}
{[%emt 00:22:06]} 23. Rd6+ {[%clk 00:15:42]} {[%emt 00:02:12]} Kc7 {[%clk
00:04:33]} {[%emt 00:03:16]} 24. Bxb6+ {[%clk 00:16:04]} Kb7 {[%clk 00:05:03]}
25. Nxg7 {[%clk 00:16:16]} {[%emt 00:00:08]} Bh3 {[%clk 00:05:02]} {[%emt
00:00:57]} 26. Rhd1 {[%clk 00:15:07]} {[%emt 00:01:14]} Ra6 {[%emt 00:02:12]}
27. Bf2 {[%clk 00:13:48]} {[%emt 00:01:48]} Rc8 {[%clk 00:01:51]} {[%emt
00:02:00]} 28. Rxa6 {[%clk 00:13:43]} {[%emt 00:00:33]} Kxa6 {[%clk 00:02:20]}
{[%emt 00:00:30]} 29. Rd6+ {[%clk 00:12:06]} {[%emt 00:01:37]} Kb7 {[%clk
00:02:46]} {[%emt 00:00:17]} 30. Rb6+ {[%clk 00:09:59]} {[%emt 00:02:25]} Kc7
{[%clk 00:03:13]} {[%emt 00:00:10]} 31. Rf6 {[%clk 00:10:00]} {[%emt 00:00:22]}
Nh8 {[%clk 00:01:16]} {[%emt 00:02:31]} 32. Bxh4 {[%clk 00:10:07]} {[%emt
00:00:21]} Kd7 {[%clk 00:01:18]} {[%emt 00:00:27]} 33. Bg3 {[%clk 00:09:54]}
{[%emt 00:00:46]} Rc6 {[%clk 00:00:42]} {[%emt 00:01:04]} 34. Rxc6 {[%clk
00:09:17]} {[%emt 00:01:05]} Kxc6 {[%clk 00:01:11]} 35. Bxe5 {[%clk 00:09:33]}
{[%emt 00:00:43]} Ng6 {[%clk 00:01:27]} 36. Bc3 {[%clk 00:07:15]} {[%emt
00:02:34]} Bg2 {[%clk 00:01:56]} {[%emt 00:00:05]} 37. Nf5 {[%clk 00:06:57]}
{[%emt 00:00:44]} Kb6 {[%clk 00:02:19]} {[%emt 00:00:38]} 38. Nd6 {[%clk
00:05:34]} {[%emt 00:01:22]} Bxf3 {[%clk 00:02:27]} {[%emt 00:00:21]} 39. Kd2
{[%clk 00:05:34]} {[%emt 00:00:36]} Kc6 {[%clk 00:01:28]} {[%emt 00:01:43]} 40.
Nxf7 {[%clk 00:05:47]} Bxe4 {[%clk 00:01:56]} {[%emt 00:00:04]} 41. Ne5+ {[%clk
00:05:35]} {[%emt 00:00:39]} Nxe5 {[%clk 00:02:17]} {[%emt 00:00:25]} 42. Bxe5
{[%clk 00:06:03]} a4 {[%clk 00:02:35]} {[%emt 00:00:12]} 43. b3 {[%clk
00:05:37]} {[%emt 00:00:47]} axb3 {[%clk 00:02:46]} {[%emt 00:00:50]} 44. axb3
{[%clk 00:05:56]} Kc5 {[%clk 00:02:55]} {[%emt 00:00:04]} 45. Bg7 {[%clk
00:05:42]} {[%emt 00:01:05]} Bf5 {[%clk 00:01:23]} {[%emt 00:01:46]} 46. Bf8+
{[%clk 00:05:56]} {[%emt 00:00:10]} Kd4 {[%clk 00:01:31]} {[%emt 00:00:14]} 47.
c4 {[%clk 00:05:33]} {[%emt 00:01:06]} Bb1 {[%clk 00:01:27]} {[%emt 00:00:21]}
48. Bg7+ {[%clk 00:05:40]} {[%emt 00:00:25]} Ke4 {[%clk 00:01:52]} {[%emt
00:00:03]} 49. b4 {[%clk 00:05:41]} {[%emt 00:00:26]} Kf5 {[%clk 00:01:40]}
{[%emt 00:00:43]} 50. h4 {[%clk 00:05:50]} {[%emt 00:00:21]} Kg4 {[%clk
00:01:57]} {[%emt 00:00:13]} 51. Bf6 {[%clk 00:06:01]} {[%emt 00:00:18]} Bg6
{[%clk 00:02:19]} {[%emt 00:00:11]} 52. b5 {[%clk 00:06:13]} {[%emt 00:00:25]}
Be8 {[%clk 00:01:29]} {[%emt 00:01:12]} 53. Ke3 {[%clk 00:06:14]} {[%emt
00:00:37]} Kf5 {[%clk 00:01:44]} {[%emt 00:00:31]} 54. Kd4 {[%clk 00:06:33]} h5
{[%clk 00:01:44]} {[%emt 00:00:17]} 55. Kc5 {[%clk 00:06:27]} {[%emt 00:00:46]}
1-0

[Event "VII Open Internacional Quart de Poblet"]
[Site "Quart de Poblet, Spain"]
[Date "2019.08.10"]
[Round "8.5"]
[White "Gonzalez Aguirre, Luis"]
[Black "Lara Lopez, Jose"]
[Result "0-1"]
[TimeControl "90m +30s por jugada"]
[WhiteFideId "2202000"]
[BlackFideId "2257041"]
[WhiteElo "2112"]
[BlackElo "2271"]

1. Nf3 {[%clk 01:30:49]} {[%emt 00:00:39]} Nf6 {[%clk 01:30:44]} {[%emt
00:00:04]} 2. c4 {[%clk 01:29:34]} {[%emt 00:01:33]} b6 {[%clk 01:27:36]}
{[%emt 00:03:35]} 3. g3 {[%clk 01:29:42]} {[%emt 00:00:22]} Bb7 {[%clk
01:28:00]} {[%emt 00:00:40]} 4. Bg2 {[%clk 01:30:05]} g6 {[%clk 01:25:01]}
{[%emt 00:03:02]} 5. b3 {[%clk 01:26:01]} {[%emt 00:04:34]} Bg7 {[%clk
01:25:03]} {[%emt 00:00:36]} 6. Bb2 {[%clk 01:26:23]} O-O {[%clk 01:25:12]}
{[%emt 00:00:25]} 7. O-O {[%clk 01:26:48]} {[%emt 00:00:05]} d6 {[%clk
01:22:12]} {[%emt 00:03:26]} 8. d4 {[%clk 01:25:19]} {[%emt 00:02:07]} c5
{[%clk 01:22:17]} {[%emt 00:00:25]} 9. Nc3 {[%clk 01:22:14]} {[%emt 00:03:27]}
cxd4 {[%clk 01:18:02]} {[%emt 00:04:45]} 10. Qxd4 {[%clk 01:15:51]} {[%emt
00:06:52]} Na6 {[%clk 01:03:23]} {[%emt 00:15:09]} 11. Qd2 {[%clk 01:13:36]}
{[%emt 00:02:45]} Nc7 {[%clk 01:00:05]} {[%emt 00:03:48]} 12. Rfd1 {[%clk
01:11:21]} {[%emt 00:02:45]} a6 {[%clk 00:53:33]} {[%emt 00:07:05]} 13. Nd4
{[%clk 01:06:20]} {[%emt 00:05:28]} Bxg2 {[%clk 00:53:21]} {[%emt 00:00:46]} 14.
Kxg2 {[%clk 01:06:43]} {[%emt 00:00:04]} Qd7 {[%clk 00:53:16]} {[%emt
00:00:41]} 15. a4 {[%clk 01:05:28]} {[%emt 00:01:42]} Ne6 {[%clk 00:43:33]}
{[%emt 00:10:09]} 16. Nxe6 {[%clk 01:00:50]} {[%emt 00:05:08]} fxe6 {[%clk
00:43:38]} {[%emt 00:00:39]} 17. f3 {[%clk 00:58:59]} {[%emt 00:02:08]} Qb7
{[%clk 00:40:41]} {[%emt 00:03:27]} 18. e4 {[%clk 00:57:29]} Nd7 {[%clk
00:40:08]} {[%emt 00:03:08]} 19. Ne2 {[%emt 00:16:31]} Bxb2 {[%clk 00:24:34]}
{[%emt 00:09:00]} 20. Qxb2 {[%clk 00:48:47]} {[%emt 00:00:36]} b5 {[%clk
00:24:01]} {[%emt 00:00:36]} 21. Qc3 {[%clk 00:29:41]} {[%emt 00:19:36]} bxa4
{[%clk 00:23:49]} {[%emt 00:01:21]} 22. Rxa4 {[%clk 00:24:05]} {[%emt
00:05:28]} Nc5 {[%clk 00:23:38]} {[%emt 00:01:12]} 23. Ra3 {[%clk 00:21:39]}
{[%emt 00:02:44]} Nxe4 {[%clk 00:23:40]} {[%emt 00:00:08]} 24. Qe3 {[%clk
00:21:40]} {[%emt 00:00:30]} Nc5 {[%clk 00:23:33]} {[%emt 00:00:37]} 25. Rd4
{[%clk 00:20:29]} {[%emt 00:01:43]} Qb4 {[%clk 00:18:00]} {[%emt 00:06:01]} 26.
Qc1 {[%clk 00:14:14]} {[%emt 00:06:45]} Nxb3 {[%clk 00:15:45]} {[%emt
00:02:45]} 27. Qb2 {[%clk 00:13:46]} {[%emt 00:01:00]} Rab8 {[%clk 00:16:06]}
{[%emt 00:00:07]} 28. Rh4 {[%clk 00:10:28]} {[%emt 00:03:48]} Nc5 {[%clk
00:15:30]} {[%emt 00:01:09]} 29. Qc1 {[%clk 00:10:43]} {[%emt 00:00:13]} Qb2
{[%clk 00:15:12]} {[%emt 00:00:48]} 30. Qe3 {[%clk 00:10:59]} {[%emt 00:00:15]}
Rb3 {[%clk 00:15:19]} {[%emt 00:00:21]} 31. Rxb3 {[%clk 00:10:36]} {[%emt
00:01:04]} Qxb3 {[%clk 00:15:45]} {[%emt 00:00:03]} 32. Qf2 {[%clk 00:10:33]}
{[%emt 00:00:24]} a5 {[%clk 00:13:53]} {[%emt 00:02:25]} 33. Nd4 {[%clk
00:10:30]} {[%emt 00:00:30]} Qc3 {[%clk 00:10:03]} {[%emt 00:04:21]} 34. Nc6
{[%clk 00:10:39]} {[%emt 00:00:34]} a4 {[%clk 00:02:01]} {[%emt 00:08:22]} 35.
Nxe7+ {[%clk 00:09:03]} {[%emt 00:02:06]} Kg7 {[%clk 00:02:27]} {[%emt
00:00:03]} 36. Rd4 {[%clk 00:05:00]} {[%emt 00:04:31]} Rb8 {[%clk 00:02:33]}
{[%emt 00:00:24]} 37. Rd2 {[%clk 00:03:36]} {[%emt 00:01:57]} a3 {[%clk
00:02:53]} {[%emt 00:00:09]} 38. Kh3 {[%clk 00:01:48]} {[%emt 00:02:14]} Rb2
{[%clk 00:02:46]} {[%emt 00:00:38]} 39. Re2 {[%clk 00:01:43]} {[%emt 00:00:37]}
a2 {[%clk 00:02:02]} {[%emt 00:01:11]} 40. Rxb2 {[%clk 00:01:45]} {[%emt
00:00:28]} a1=Q {[%clk 00:02:27]} {[%emt 00:00:12]} 41. Re2 {[%clk 00:01:24]}
{[%emt 00:00:44]} Qcc1 {[%clk 00:01:14]} {[%emt 00:01:49]} 42. Ra2 {[%clk
00:00:35]} {[%emt 00:01:13]} Qf1+ {[%clk 00:01:29]} {[%emt 00:00:18]} 0-1